fUSD/lending_fUSD_20251229
["ID","MTS","AMOUNT","RATE_DAILY","PERIOD"]
[400020851,1767028239891,-578.57186378,0.00015491,2]
[400020852,1767028239903,-4287.77,0.00015491,2]
[400020853,1767028240028,-2306.95635147,0.00015491,2]
[400020854,1767028240038,-1210.65510416,0.00015491,2]
[400020855,1767028240186,-38778.91905189,0.00015491,2]
[400020864,1767028243396,-254.94538776,0.00015491,2]
[400020865,1767028243407,-267.470874,0.00015491,2]
[400020866,1767028243418,-1715.1,0.00015491,2]
[400020867,1767028243431,-2367.41915281,0.00015491,2]
[400020868,1767028243442,-1288.95483898,0.00015491,2]
[400020869,1767028243453,-2630.64669746,0.00015491,2]
[400020870,1767028243464,-460.71535664,0.00015491,2]
[400020871,1767028243478,-466.7936093,0.00015491,2]
[400020872,1767028243490,-1614.38715841,0.00015491,2]
[400020873,1767028243511,-452.88557217,0.00015491,2]
[400020874,1767028244484,-17728.62037072,0.00015491,2]
[400020875,1767028244516,-3411.37260033,0.00015491,2]
[400020876,1767028244527,-3681.900821,0.00015491,2]
[400020881,1767028245799,-4400.33003597,0.00015491,2]
[400020882,1767028245811,-2687.74667252,0.00015491,2]
[400020883,1767028245823,-4311.20327443,0.00015491,2]
[400020884,1767028245854,-692.33650997,0.00015491,2]
[400020885,1767028245866,-6876.50162694,0.00015491,2]
[400020886,1767028245912,-109142.84125138,0.00015491,2]
[400020887,1767028245924,-281.178,0.00015491,2]
[400020888,1767028245982,-2652.81855684,0.00015491,2]
[400020889,1767028245995,-3067.597645,0.00015491,2]
[400020890,1767028246023,-379.12000001,0.00015491,2]
[400020891,1767028246130,-6154.21511341,0.00015491,2]
[400020901,1767028976552,-2500.0,0.00015339,2]
[400020902,1767028976573,-300.0,0.00015343,2]
[400020903,1767028976593,-600.0,0.00015343,2]
[400020904,1767028976614,-195.0,0.0001535,2]
[400020905,1767028976633,-300.0,0.00015366,2]
[400020906,1767028976657,-500.0,0.0001539,2]
[400020907,1767028976682,-500.0,0.0001539,2]
[400020908,1767028976712,-500.0,0.0001539,2]
[400020909,1767028976736,-420.32303529,0.0001539,2]
[400020910,1767028976760,-500.0,0.0001539,2]
[400020911,1767028976782,-500.0,0.0001539,2]
[400020912,1767028976803,-500.0,0.0001539,2]
[400020913,1767028976828,-492684.67696471,0.00015391,2]
[400020917,1767029058318,-613.27971139,0.00015243,2]
[400020918,1767029058343,-195.0,0.00015266,2]
[400020919,1767029058366,-613.27971139,0.0001529,2]
[400020920,1767029058390,-158.54862959,0.00015317,2]
[400020921,1767029058417,-613.27971139,0.00015336,2]
[400020922,1767029058439,-14995.76729531,0.00015382,2]
[400020923,1767029058461,-157.0,0.0001539,2]
[400020924,1767029058483,-250.0,0.0001539,2]
[400020925,1767029058511,-482403.84494093,0.00015391,2]
[400020936,1767029215463,5000.0,0.00030137,120]
[400020947,1767029314360,5200.47,0.00030137,120]
[400020957,1767029431892,-324.68,0.00013699,2]
[400020959,1767029431902,-600.0,0.00014384,2]
[400020960,1767029431912,-300.0,0.00015068,2]
[400020961,1767029431922,-600.0,0.00015068,2]
[400020962,1767029431931,-250.0,0.00015068,2]
[400020963,1767029431941,-195.0,0.00015068,2]
[400020964,1767029431951,-300.0,0.0001539,2]
[400020965,1767029431961,-9680.19106478,0.00015391,2]
[400020966,1767029431972,-461.44401143,0.00015391,2]
[400020967,1767029431983,-1765.86379233,0.00015391,2]
[400020968,1767029432003,-13003.97922582,0.00015391,2]
[400020969,1767029432012,-200.0,0.00015482,2]
[400020970,1767029432021,-200.0,0.00015482,2]
[400020971,1767029432031,-151.0,0.00015482,2]
[400020972,1767029432040,-151.0,0.00015482,2]
[400020973,1767029432050,-151.0,0.00015482,2]
[400020974,1767029432063,-151.0,0.00015482,2]
[400020975,1767029432072,-151.0,0.00015482,2]
[400020976,1767029432082,-151.0,0.00015482,2]
[400020977,1767029432091,-151.0,0.00015482,2]
[400020978,1767029432101,-151.0,0.00015482,2]
[400020979,1767029432110,-151.0,0.00015482,2]
[400020980,1767029432120,-151.0,0.00015482,2]
[400020982,1767029432129,-151.0,0.00015482,2]
[400020984,1767029432138,-151.0,0.00015482,2]
[400020986,1767029432147,-151.0,0.00015482,2]
[400020988,1767029432156,-606.9,0.00015482,2]
[400020989,1767029432166,-8673.5826283,0.00015491,2]
[400020990,1767029432175,-885.4763891,0.00015491,2]
[400020991,1767029432185,-215.67,0.00015699,2]
[400020992,1767029432194,-203.06386419,0.00015741,2]
[400020993,1767029432203,-1322.59,0.00015747,2]
[400020994,1767029432212,-606.9,0.00015756,2]
[400020995,1767029432221,-500.0,0.00015804,2]
[400020996,1767029432230,-217.9699959,0.0001603,2]
[400020997,1767029432239,-606.9,0.0001603,2]
[400020998,1767029432248,-3785.57219334,0.000162,5]
[400020999,1767029432261,-547.51815854,0.000162,5]
[400021004,1767029432459,-100.0,0.000162,5]
[400021005,1767029432470,-566.90964812,0.000162,5]
[400021006,1767029432479,-606.9,0.00016304,2]
[400021007,1767029432490,-201.98303125,0.00016373,2]
[400021008,1767029432503,-69.59086538,0.00016373,2]
[400021009,1767029432514,-430.40913462,0.00016373,2]
[400021010,1767029432523,-500.0,0.00016373,2]
[400021011,1767029432532,-628.25452076,0.00016373,2]
[400021012,1767029432542,-5929.21,0.00016438,2]
[400021013,1767029432552,-150.0,0.00016472,2]
[400021014,1767029432562,-150.0,0.00016472,2]
[400021015,1767029432574,-151.8978061,0.00016472,2]
[400021016,1767029432584,-150.0,0.00016472,2]
[400021017,1767029432593,-150.0,0.00016472,2]
[400021018,1767029432602,-150.0,0.00016472,2]
[400021019,1767029432611,-150.0,0.00016472,2]
[400021020,1767029432623,-200.0,0.00016499,2]
[400021021,1767029432632,-150.0,0.00016524,2]
[400021022,1767029432642,-150.0,0.00016524,2]
[400021023,1767029432652,-150.0,0.00016524,2]
[400021024,1767029432663,-150.0,0.00016524,2]
[400021025,1767029432672,-200.0,0.00016524,2]
[400021026,1767029432681,-500.0,0.00016524,2]
[400021027,1767029432690,-500.0,0.00016524,2]
[400021028,1767029432700,-500.0,0.00016524,2]
[400021029,1767029432709,-152.10490824,0.00016524,2]
[400021030,1767029432719,-150.0,0.00016524,2]
[400021031,1767029432728,-500.0,0.00016524,2]
[400021032,1767029432739,-150.0,0.00016524,2]
[400021033,1767029432748,-500.0,0.00016524,2]
[400021034,1767029432758,-157.8979539,0.00016524,2]
[400021035,1767029432767,-150.0,0.00016524,2]
[400021036,1767029432776,-151.17389977,0.00016524,2]
[400021037,1767029432785,-500.0,0.00016524,2]
[400021038,1767029432795,-259.29,0.00016535,2]
[400021039,1767029432805,-200.0,0.00016548,2]
[400021040,1767029432816,-150.0,0.00016551,2]
[400021041,1767029432825,-150.0,0.00016551,2]
[400021042,1767029432838,-150.0,0.00016551,2]
[400021043,1767029432851,-500.0,0.00016551,2]
[400021044,1767029432860,-500.0,0.00016551,2]
[400021045,1767029432870,-500.0,0.00016551,2]
[400021046,1767029432880,-150.0,0.00016551,2]
[400021047,1767029432889,-500.0,0.00016551,2]
[400021048,1767029432898,-200.0,0.00016551,2]
[400021049,1767029432907,-500.0,0.00016551,2]
[400021050,1767029432917,-150.0,0.00016551,2]
[400021051,1767029432926,-606.9,0.00016578,2]
[400021052,1767029432935,-150.0,0.00016579,2]
[400021053,1767029432944,-156.38143809,0.00016579,2]
[400021054,1767029432953,-296.21634986,0.00016579,2]
[400021055,1767029432963,-504.56733337,0.00016579,2]
[400021056,1767029432972,-305.89905131,0.00016579,2]
[400021057,1767029432982,-500.0,0.00016579,2]
[400021058,1767029432991,-150.0,0.00016579,2]
[400021059,1767029433000,-500.0,0.00016579,2]
[400021060,1767029433010,-500.0,0.00016579,2]
[400021061,1767029433019,-202.57672369,0.00016579,2]
[400021062,1767029433028,-150.0,0.00016606,2]
[400021063,1767029433037,-304.41523631,0.00016606,2]
[400021064,1767029433047,-150.0,0.00016606,2]
[400021065,1767029433056,-500.0,0.00016606,2]
[400021066,1767029433065,-500.0,0.00016606,2]
[400021067,1767029433074,-500.0,0.00016634,2]
[400021068,1767029433083,-150.0,0.00016634,2]
[400021069,1767029433092,-500.0,0.00016634,2]
[400021070,1767029433101,-500.0,0.00016661,2]
[400021071,1767029433110,-250.0,0.00016661,2]
[400021072,1767029433119,-500.0,0.00016661,2]
[400021073,1767029433128,-500.0,0.00016664,2]
[400021074,1767029433137,-500.0,0.00016688,2]
[400021075,1767029433146,-500.0,0.00016688,2]
[400021076,1767029433155,-500.0,0.00016716,2]
[400021077,1767029433164,-280.8,0.00016738,2]
[400021078,1767029433174,-500.0,0.00016743,2]
[400021079,1767029433183,-500.0,0.00016771,2]
[400021080,1767029433191,-500.0,0.00016798,2]
[400021081,1767029433200,-5148.0067256,0.000168,2]
[400021082,1767029433211,-606.92495801,0.00016852,2]
[400021083,1767029433220,-500.0,0.000169,2]
[400021084,1767029433230,-500.0,0.000169,2]
[400021085,1767029433241,-696.22588074,0.00016921,2]
[400021086,1767029433250,-1000.0,0.00016921,2]
[400021087,1767029433259,-244.0,0.00016924,2]
[400021088,1767029433268,-250.0,0.00016929,2]
[400021089,1767029433278,-300.0,0.00016929,2]
[400021090,1767029433289,-346.63864587,0.00016929,2]
[400021091,1767029433299,-195.0,0.00016929,2]
[400021092,1767029433309,-600.0,0.0001693,2]
[400021093,1767029433319,-2500.0,0.0001693,2]
[400021094,1767029433328,-600.0,0.0001693,2]
[400021095,1767029433337,-167.27887898,0.00016945,2]
[400021096,1767029433347,-7291.39102899,0.00016945,2]
[400021097,1767029433356,-232.19291297,0.00016945,2]
[400021098,1767029433366,-261.43989149,0.00016945,2]
[400021099,1767029433375,-232.54403646,0.0001699,2]
[400021100,1767029433388,-279.57728646,0.00016999,2]
[400021101,1767029433398,-330.91702669,0.00016999,2]
[400021102,1767029433408,-274.5364662,0.00016999,2]
[400021103,1767029433418,-500.0,0.00016999,2]
[400021104,1767029433428,-380.03589281,0.00016999,2]
[400021105,1767029433437,-500.0,0.00016999,2]
[400021106,1767029433446,-500.0,0.00016999,2]
[400021107,1767029433456,-230.98913896,0.00016999,2]
[400021108,1767029433465,-43038.19558266,0.00017,2]
[400021109,1767029433477,-40076.49372465,0.00017,2]
[400021110,1767029433488,-39878.2052315,0.00017,2]
[400021111,1767029433503,-263.90337485,0.00017,2]
[400021112,1767029433515,-14351.55240873,0.00017,2]
[400021113,1767029433526,-3353.64365017,0.00017,2]
[400021114,1767029433537,-1770.27866958,0.00017,2]
[400021132,1767029437983,-650.0,0.00016998,2]
[400021133,1767029437997,-1174.0667096,0.00016998,2]
[400021134,1767029438038,-1907.28828516,0.00016998,2]
[400021135,1767029438049,-1315.68623605,0.00016998,2]
[400021136,1767029438060,-489.23389195,0.00016998,2]
[400021137,1767029438075,-1144.49982301,0.00016998,2]
[400021138,1767029438086,-1709.80613655,0.00016998,2]
[400021139,1767029438098,-1641.8619337,0.00016998,2]
[400021140,1767029438107,-1385.32542401,0.00017,2]
[400021141,1767029438119,-13593.18913099,0.00017,2]
[400021142,1767029438147,-12427.28438952,0.00017,2]
[400021143,1767029438206,-17711.02363278,0.00017,2]
[400021144,1767029438218,-4038.49465,0.00017,2]
[400021145,1767029438230,-580.25878155,0.00017,2]
[400021146,1767029438243,-388.59353548,0.00017,2]
[400021169,1767029440029,-257094.51330895,0.00017,2]
[400021171,1767029440044,-417995.86630646,0.00017,2]
[400021173,1767029440296,-1493709.26636404,0.00017,2]
[400021181,1767029443723,-480.79479567,0.00017,2]
[400021182,1767029443779,-481.88438041,0.00017,2]
[400021183,1767029443791,-648.93851997,0.00017,2]
[400021184,1767029443802,-880.0,0.00017,2]
[400021317,1767029445985,-4892.23422473,0.00017,2]
[400021327,1767029446042,-794.30477733,0.00017,2]
[400021329,1767029446053,-14451.01668139,0.00017,2]
[400021335,1767029446097,-2200.23910581,0.00017,2]
[400021337,1767029446108,-934.40077117,0.00017,2]
[400021343,1767029446153,-2353.10729965,0.00017,2]
[400021345,1767029446164,-423.87978976,0.00017,2]
[400021538,1767029959129,186.07,8.098e-05,2]
[400021539,1767029959323,186.07,0.00012148,2]
[400021568,1767030632049,-976.294,0.00014985,2]
[400021569,1767030632059,-250.0,0.00014991,2]
[400021570,1767030632070,-354.35076502,0.00014998,2]
[400021571,1767030632080,-250.0,0.00015051,2]
[400021572,1767030632091,-157.85220964,0.00015091,2]
[400021573,1767030632100,-14336.15744655,0.00015146,2]
[400021574,1767030632110,-28385.36488878,0.00015191,2]
[400021575,1767030632121,-6553.8,0.00015191,2]
[400021576,1767030632132,-2895.1177145,0.00015191,2]
[400021577,1767030632211,-4907.43633229,0.00015191,2]
[400021578,1767030632266,-4647.51938425,0.00015191,2]
[400021579,1767030632277,-445.61003941,0.00015191,2]
[400021663,1767030638240,-139999.99849206,0.00015191,2]
[400021664,1767030638295,-592.47286909,0.00015191,2]
[400021665,1767030638348,-963.501,0.00015191,2]
[400021726,1767030640232,-268.361,0.00015191,2]
[400021727,1767030640244,-363.25709748,0.00015191,2]
[400021728,1767030640284,-1244.21357412,0.00015191,2]
[400021729,1767030640443,-351.46849696,0.00015191,2]
[400021730,1767030640603,-7869.11312225,0.00015191,2]
[400021738,1767030643995,-10611.36946134,0.00015191,2]
[400021739,1767030644050,-65442.2807264,0.00015191,2]
[400021749,1767030646167,-564.931296,0.00015191,2]
[400021750,1767030646431,-723894.18450507,0.00015191,2]
[400021751,1767030646441,-2500.0,0.00015191,2]
[400021752,1767030646450,-7427.29623619,0.00015247,2]
[400021753,1767030646459,-286.0,0.00015282,2]
[400021754,1767030646468,-151.0,0.00015282,2]
[400021755,1767030646477,-151.0,0.00015282,2]
[400021756,1767030646487,-1244.21357412,0.0001529,5]
[400021757,1767030646495,-500.0,0.0001529,2]
[400021758,1767030646505,-500.0,0.0001529,2]
[400021759,1767030646515,-150.0,0.0001529,2]
[400021760,1767030646524,-189.76598594,0.00015644,2]
[400021761,1767030646534,-200.0,0.00015672,2]
[400021762,1767030646543,-196.8,0.00015722,2]
[400021763,1767030646552,-1500.0,0.00015744,2]
[400021764,1767030646563,-151.0,0.00016075,2]
[400021765,1767030646573,-151.0,0.00016075,2]
[400021766,1767030646582,-151.0,0.00016127,2]
[400021768,1767030646591,-151.0,0.00016127,2]
[400021769,1767030646602,-186.07,0.00016197,2]
[400021771,1767030646611,-5693.69,0.00016293,2]
[400021773,1767030646621,-500.0,0.00016373,2]
[400021775,1767030646631,-300.0,0.00016484,2]
[400021777,1767030646640,-250.0,0.00016484,2]
[400021779,1767030646649,-1000.0,0.00016921,2]
[400021781,1767030646659,-583.78166582,0.00016973,2]
[400021783,1767030646668,-500.0,0.00016973,2]
[400021785,1767030646678,-57783.28668791,0.00017,2]
[400021787,1767030646687,-2248.5949088,0.00017,2]
[400021788,1767030646697,-276.0,0.00017,2]
[400021789,1767030646706,-354.5721611,0.00017,2]
[400021790,1767030646716,-20441.8223762,0.00017,2]
[400021791,1767030646726,-246.42,0.00017,2]
[400021792,1767030646735,-166.7,0.00017045,2]
[400021793,1767030646753,-155.02935764,0.00017102,2]
[400021794,1767030646765,-76926.60924322,0.00017112,2]
[400021795,1767030646775,-150.0,0.00017273,2]
[400021796,1767030646786,-246.42,0.00017274,2]
[400021797,1767030646796,-205.84,0.00017284,2]
[400021798,1767030646807,-157.92,0.00017284,2]
[400021799,1767030646817,-912.91,0.00017334,2]
[400021800,1767030646826,-1500.0,0.00017468,2]
[400021801,1767030646835,-500.0,0.00017521,2]
[400021802,1767030646845,-246.42,0.00017548,2]
[400021803,1767030646855,-3077.94,0.0001759,2]
[400021804,1767030646864,-620.0,0.00017593,2]
[400021805,1767030646875,-1000.0,0.00017593,2]
[400021806,1767030646885,-500.0,0.00017593,2]
[400021807,1767030646895,-1000.0,0.00017593,2]
[400021808,1767030646905,-322.6107,0.00017593,2]
[400021809,1767030646915,-500.0,0.00017593,2]
[400021810,1767030646924,-1000.0,0.00017593,2]
[400021811,1767030646936,-533.88981491,0.00017593,2]
[400021812,1767030646947,-500.0,0.00017593,2]
[400021813,1767030646957,-1000.0,0.00017593,2]
[400021814,1767030646966,-500.0,0.00017593,2]
[400021815,1767030646975,-1000.0,0.00017593,2]
[400021816,1767030646985,-250.0,0.00017593,2]
[400021817,1767030646994,-500.0,0.00017593,2]
[400021818,1767030647003,-500.0,0.00017593,2]
[400021819,1767030647012,-1000.0,0.00017593,2]
[400021820,1767030647022,-500.0,0.00017593,2]
[400021821,1767030647031,-500.0,0.00017593,2]
[400021822,1767030647041,-1000.0,0.00017593,2]
[400021823,1767030647051,-500.0,0.00017593,2]
[400021824,1767030647061,-500.0,0.00017593,2]
[400021825,1767030647070,-1000.0,0.00017593,2]
[400021826,1767030647080,-500.0,0.00017593,2]
[400021827,1767030647090,-500.0,0.00017593,2]
[400021828,1767030647100,-1000.0,0.00017593,2]
[400021829,1767030647109,-500.0,0.00017593,2]
[400021830,1767030647118,-500.0,0.00017593,2]
[400021831,1767030647128,-1000.0,0.00017593,2]
[400021832,1767030647138,-500.0,0.00017593,2]
[400021833,1767030647148,-1000.0,0.00017593,2]
[400021834,1767030647160,-500.0,0.00017593,2]
[400021835,1767030647170,-500.0,0.00017593,2]
[400021836,1767030647179,-514.51547206,0.00017593,2]
[400021837,1767030647189,-1000.0,0.00017593,2]
[400021838,1767030647198,-500.0,0.00017593,2]
[400021839,1767030647208,-1000.0,0.00017593,2]
[400021840,1767030647217,-500.0,0.00017593,2]
[400021841,1767030647228,-578.20924308,0.00017593,2]
[400021842,1767030647238,-500.0,0.00017593,2]
[400021843,1767030647247,-500.0,0.00017593,2]
[400021844,1767030647256,-500.0,0.00017593,2]
[400021845,1767030647266,-500.0,0.00017593,2]
[400021846,1767030647278,-500.0,0.00017593,2]
[400021847,1767030647288,-500.0,0.00017593,2]
[400021848,1767030647297,-500.0,0.00017593,2]
[400021849,1767030647307,-500.0,0.00017593,2]
[400021850,1767030647316,-500.0,0.00017593,2]
[400021851,1767030647326,-500.0,0.00017593,2]
[400021852,1767030647335,-500.0,0.00017593,2]
[400021853,1767030647345,-500.0,0.00017593,2]
[400021854,1767030647355,-500.0,0.00017593,2]
[400021855,1767030647364,-500.0,0.00017593,2]
[400021856,1767030647374,-200.0,0.00017593,2]
[400021857,1767030647383,-500.0,0.00017593,2]
[400021858,1767030647392,-250.0,0.00017593,2]
[400021859,1767030647401,-500.0,0.00017593,2]
[400021860,1767030647411,-207.4,0.00017593,2]
[400021861,1767030647420,-500.0,0.00017593,2]
[400021862,1767030647430,-250.0,0.00017593,2]
[400021863,1767030647439,-500.0,0.00017593,2]
[400021864,1767030647449,-215.0738,0.00017593,2]
[400021865,1767030647459,-500.0,0.00017593,2]
[400021866,1767030647468,-250.0,0.00017593,2]
[400021867,1767030647478,-500.0,0.00017593,2]
[400021868,1767030647488,-223.0315306,0.00017593,2]
[400021869,1767030647501,-500.0,0.00017593,2]
[400021870,1767030647511,-250.0,0.00017593,2]
[400021871,1767030647520,-500.0,0.00017593,2]
[400021872,1767030647529,-231.28369723,0.00017593,2]
[400021873,1767030647539,-500.0,0.00017593,2]
[400021874,1767030647549,-250.0,0.00017593,2]
[400021875,1767030647559,-500.0,0.00017593,2]
[400021876,1767030647570,-239.84119403,0.00017593,2]
[400021877,1767030647580,-500.0,0.00017593,2]
[400021878,1767030647590,-250.0,0.00017593,2]
[400021879,1767030647600,-248.71531821,0.00017593,2]
[400021880,1767030647611,-620.81509365,0.00017593,2]
[400021881,1767030647621,-500.0,0.00017593,2]
[400021882,1767030647631,-250.0,0.00017593,2]
[400021883,1767030647640,-257.91778498,0.00017593,2]
[400021884,1767030647650,-250.0,0.00017593,2]
[400021885,1767030647659,-329.0,0.00017593,2]
[400021886,1767030647669,-250.0,0.00017593,2]
[400021887,1767030647678,-250.0,0.00017593,2]
[400021888,1767030647688,-250.0,0.00017593,2]
[400021889,1767030647700,-250.0,0.00017593,2]
[400021890,1767030647710,-250.0,0.00017593,2]
[400021891,1767030647719,-500.0,0.00017593,2]
[400021892,1767030647729,-500.0,0.00017593,2]
[400021893,1767030647738,-500.0,0.00017593,2]
[400021894,1767030647748,-500.0,0.00017593,2]
[400021895,1767030647758,-500.0,0.00017593,2]
[400021896,1767030647769,-250.0,0.00017593,2]
[400021897,1767030647780,-500.0,0.00017593,2]
[400021898,1767030647790,-250.0,0.00017593,2]
[400021899,1767030647800,-500.0,0.00017593,2]
[400021900,1767030647812,-500.0,0.00017593,2]
[400021901,1767030647822,-250.0,0.00017593,2]
[400021902,1767030647832,-500.0,0.00017593,2]
[400021903,1767030647841,-250.0,0.00017593,2]
[400021904,1767030647852,-272.00956049,0.00017593,2]
[400021905,1767030647861,-250.0,0.00017593,2]
[400021906,1767030647871,-250.0,0.00017593,2]
[400021907,1767030647883,-250.0,0.00017593,2]
[400021908,1767030647896,-250.0,0.00017593,2]
[400021909,1767030647905,-250.0,0.00017593,2]
[400021910,1767030647916,-250.0,0.00017593,2]
[400021911,1767030647926,-250.0,0.00017593,2]
[400021912,1767030647936,-250.0,0.00017593,2]
[400021913,1767030647947,-250.0,0.00017593,2]
[400021914,1767030647958,-1322.59,0.00017715,2]
[400021915,1767030647967,-500.0,0.00017779,2]
[400021916,1767030647977,-150.0,0.00017779,2]
[400021917,1767030647986,-500.0,0.00017779,2]
[400021918,1767030647995,-150.0,0.00017779,2]
[400021919,1767030648005,-150.0,0.00017779,2]
[400021920,1767030648014,-150.53756938,0.00017779,2]
[400021921,1767030648023,-150.32339605,0.00017779,2]
[400021922,1767030648033,-150.3024691,0.00017779,2]
[400021923,1767030648044,-173.82331506,0.00017779,2]
[400021924,1767030648054,-150.0,0.00017779,2]
[400021925,1767030648063,-150.0,0.00017779,2]
[400021926,1767030648074,-150.05940282,0.00017779,2]
[400021927,1767030648089,-500.0,0.00017806,2]
[400021928,1767030648099,-150.0,0.00017806,2]
[400021929,1767030648109,-500.0,0.00017806,2]
[400021930,1767030648119,-151.42325421,0.00017806,2]
[400021931,1767030648129,-150.33162922,0.00017806,2]
[400021932,1767030648138,-150.0,0.00017806,2]
[400021933,1767030648148,-150.0,0.00017806,2]
[400021934,1767030648164,-246.42,0.00017822,2]
[400021935,1767030648174,-500.0,0.00017834,2]
[400021936,1767030648184,-150.0,0.00017834,2]
[400021937,1767030648195,-152.82209839,0.00017834,2]
[400021938,1767030648205,-202.52909335,0.00017834,2]
[400021939,1767030648215,-150.0,0.00017834,2]
[400021940,1767030648225,-500.0,0.00017861,2]
[400021941,1767030648235,-150.0,0.00017861,2]
[400021942,1767030648245,-150.0,0.00017861,2]
[400021943,1767030648255,-500.0,0.00017889,2]
[400021944,1767030648268,-150.0,0.00017889,2]
[400021945,1767030648278,-164.71743625,0.00017889,2]
[400021946,1767030648288,-428.39452872,0.00017916,2]
[400021947,1767030648300,-250.0,0.00017916,2]
[400021948,1767030648309,-1000.0,0.00018082,2]
[400021949,1767030648319,-246.46,0.00018096,2]
[400021950,1767030648328,-553.64373807,0.00018141,2]
[400021951,1767030648340,-955.89,0.00018206,2]
[400021952,1767030648350,-14336.15744652,0.00018209,2]
[400021953,1767030648360,-5121.0,0.00018248,2]
[400021954,1767030648370,-7427.29623615,0.00018299,2]
[400021955,1767030648380,-750.11,0.00018448,2]
[400021956,1767030648391,-157.85220964,0.00018456,2]
[400021957,1767030648401,-574.12855637,0.00018689,2]
[400021958,1767030648411,-1000.0,0.0001876,2]
[400021959,1767030648421,-642.94,0.00018962,2]
[400021960,1767030648431,-334.5472959,0.00018962,2]
[400021961,1767030648440,-267.46074303,0.00018962,2]
[400021962,1767030648450,-595.37131296,0.00019237,2]
[400021963,1767030648459,-4561.1871005,0.00019397,2]
[400021964,1767030648469,-1000.0,0.00019438,2]
[400021965,1767030648479,-175.3,0.00019626,2]
[400021966,1767030648490,-1322.59,0.00019683,2]
[400021967,1767030648501,-617.40005154,0.00019785,2]
[400021968,1767030648512,-750.11,0.00019817,2]
[400021969,1767030648521,-1017.7384082,0.00019932,2]
[400021970,1767030648531,-1000.0,0.00020116,2]
[400021971,1767030648541,-189.76598591,0.00020156,2]
[400021972,1767030648551,-324.68,0.00020187,2]
[400021973,1767030648562,-666.72878,0.00020331,2]
[400021974,1767030648572,-358.86214175,0.00020331,2]
[400021975,1767030648582,-277.35679052,0.00020331,2]
[400021976,1767030648592,-599.60298507,0.00020332,2]
[400021977,1767030648602,-302.91199219,0.00020333,2]
[400021978,1767030648612,-1000.0,0.00020795,2]
[400021979,1767030648623,-6280.55,0.00020951,2]
[400021980,1767030648634,-298.64,0.00020951,2]
[400021981,1767030648644,-5627.21,0.00021068,2]
[400021982,1767030648655,-1000.0,0.00021225,2]
[400021983,1767030648667,-500.0,0.00021271,2]
[400021984,1767030648677,-195.70410053,0.00021271,2]
[400021985,1767030648696,-237.23367736,0.00021271,2]
[400021986,1767030648708,-260.74653073,0.00021271,2]
[400021987,1767030648718,-14336.15744652,0.00021272,2]
[400021988,1767030648729,-7427.29623615,0.00021351,2]
[400021989,1767030648741,-157.92,0.00021605,2]
[400021990,1767030648754,-1322.59,0.00021652,2]
[400021991,1767030648764,-642.94,0.000217,2]
[400021992,1767030648773,-287.61899177,0.000217,2]
[400021993,1767030648789,-157.85220964,0.0002182,2]
[400021994,1767030648798,-5000.0,0.00021918,2]
[400021995,1767030648808,-2298.92,0.0002192,2]
[400021996,1767030648816,-2298.92,0.0002192,2]
[400021997,1767030648825,-2298.92,0.0002192,2]
[400021998,1767030648835,-2298.92,0.0002192,2]
[400021999,1767030648844,-2298.92,0.0002192,2]
[400022000,1767030648853,-160.0,0.00022,7]
[400022001,1767030648862,-151.0,0.00022107,2]
[400022002,1767030648872,-779.05396743,0.00022107,2]
[400022003,1767030648882,-166.66,0.00022398,2]